fUST/lending_fUST_20240730
["ID","MTS","AMOUNT","RATE_DAILY","PERIOD"]
[333619076,1722288648342,-515.9917742,0.00013698,2]
[333619077,1722288648352,-5221.62992602,0.00013698,2]
[333619108,1722289115154,5998.88433865,0.00025,120]
[333619109,1722289119348,5998.88433865,0.0002,120]
[333619110,1722289127104,5998.88433865,0.00015,120]
[333619161,1722289835740,-200.0,9.899e-05,2]
[333619162,1722289835750,-157.73503346,9.999e-05,2]
[333619163,1722289835760,-300.0,0.0001212,2]
[333619164,1722289835770,-414.5773911,0.00012121,2]
[333619165,1722289835784,-270.5513048,0.00012121,2]
[333619274,1722289837840,-24214.8713041,0.00012121,2]
[333619276,1722289837850,-2103.78220031,0.000129,2]
[333619277,1722289837861,-200.0,0.00012986,2]
[333619278,1722289837870,-33998.57830675,0.00013,2]
[333619279,1722289837880,-616.0,0.00013,2]
[333619280,1722289837890,-420.0,0.00013332,2]
[333619281,1722289837900,-5309.48206098,0.0001346,2]
[333619282,1722289837909,-206.8246195,0.000135,2]
[333619283,1722289837919,-233.44989731,0.00013588,2]
[333619284,1722289837928,-2075.03759587,0.00013598,2]
[333619285,1722289837938,-2779.13436246,0.00013598,2]
[333619286,1722289837947,-150.112233,0.000136,2]
[333619287,1722289837956,-150.112233,0.000136,2]
[333619289,1722289837966,-294.0793213,0.000136,2]
[333619291,1722289837977,-206.8246195,0.000136,2]
[333619292,1722289837987,-150.112233,0.000136,2]
[333619293,1722289837998,-61221.16093212,0.00013668,2]
[333619294,1722289838012,-2098.33572321,0.00013668,2]
[333619321,1722289839928,-3048.58766404,0.00013668,2]
[333619322,1722289839942,-4250.73654338,0.00013668,2]
[333619323,1722289839955,-5238.1973598,0.00013668,2]
[333619381,1722289842952,-1060.39575116,0.00013668,2]
[333619384,1722289842964,-302.20670787,0.00013668,2]
[333619385,1722289842976,-1465.45110338,0.00013668,2]
[333619387,1722289842987,-15480.70134304,0.00013668,2]
[333619389,1722289842996,-19904.52086433,0.00013678,2]
[333619392,1722289843007,-10573.51933533,0.00013678,2]
[333619399,1722289843065,-32299.14188564,0.00013678,2]
[333619401,1722289843075,-94165.773128,0.00013688,2]
[333619403,1722289843085,-369.18785751,0.00013698,5]
[333619405,1722289843094,-1359.62075224,0.00013698,5]
[333619407,1722289843104,-500.0,0.00013698,2]
[333619408,1722289843113,-481.51294287,0.00013698,2]
[333619410,1722289843123,-500.0,0.00013698,2]
[333619412,1722289843133,-504.39814406,0.00013698,2]
[333619414,1722289843143,-865.26,0.00013698,2]
[333619416,1722289843152,-500.0,0.00013698,2]
[333619418,1722289843161,-500.0,0.00013698,2]
[333619420,1722289843171,-540.8355741,0.00013698,2]
[333619422,1722289843180,-500.0,0.00013698,2]
[333619424,1722289843190,-579.40700129,0.00013698,2]
[333619426,1722289843200,-712.31,0.00013698,2]
[333619428,1722289843209,-502.44509416,0.00013698,2]
[333619430,1722289843219,-500.0,0.00013698,2]
[333619432,1722289843229,-500.0,0.00013698,2]
[333619434,1722289843239,-1415.16,0.00013698,2]
[333619436,1722289843249,-500.0,0.00013698,2]
[333619438,1722289843258,-1122.99,0.00013698,2]
[333619440,1722289843267,-500.0,0.00013698,2]
[333619442,1722289843277,-500.0,0.00013698,2]
[333619444,1722289843287,-503.52190112,0.00013698,2]
[333619447,1722289843297,-497.83430396,0.00013698,2]
[333619449,1722289843307,-500.0,0.00013698,2]
[333619451,1722289843317,-502.97305532,0.00013698,2]
[333619453,1722289843326,-344.53344304,0.00013698,2]
[333619455,1722289843336,-506.48097375,0.00013698,2]
[333619457,1722289843345,-500.0,0.00013698,2]
[333619459,1722289843355,-768.91,0.00013698,2]
[333619461,1722289843364,-500.0,0.00013698,2]
[333619463,1722289843374,-500.0,0.00013698,2]
[333619465,1722289843384,-500.0,0.00013698,2]
[333619467,1722289843393,-500.0,0.00013698,2]
[333619469,1722289843403,-500.0,0.00013698,2]
[333619471,1722289843412,-500.0,0.00013698,2]
[333619473,1722289843422,-500.0,0.00013698,2]
[333619475,1722289843432,-500.0,0.00013698,2]
[333619477,1722289843442,-500.0,0.00013698,2]
[333619479,1722289843451,-500.0,0.00013698,2]
[333619481,1722289843461,-274.887198,0.00013698,2]
[333619483,1722289843470,-522.68315535,0.00013698,2]
[333619485,1722289843480,-501.53067688,0.00013698,2]
[333619487,1722289843489,-151.0,0.00013698,2]
[333619497,1722289843560,-636.22821312,0.00013698,2]
[333619499,1722289843579,-503.71130768,0.00013698,2]
[333619501,1722289843592,-500.0,0.00013698,2]
[333619503,1722289843602,-500.0,0.00013698,2]
[333619505,1722289843612,-500.0,0.00013698,2]
[333619507,1722289843621,-500.0,0.00013698,2]
[333619509,1722289843631,-508.84442964,0.00013698,2]
[333619510,1722289843641,-500.0,0.00013698,2]
[333619513,1722289843650,-500.0,0.00013698,2]
[333619514,1722289843659,-500.0,0.00013698,2]
[333619517,1722289843671,-500.0,0.00013698,2]
[333619519,1722289843681,-500.0,0.00013698,2]
[333619521,1722289843691,-1344.28,0.00013698,2]
[333619523,1722289843701,-500.0,0.00013698,2]
[333619525,1722289843711,-722.0,0.00013698,2]
[333619527,1722289843721,-500.0,0.00013698,2]
[333619529,1722289843732,-615.08,0.00013698,2]
[333619531,1722289843741,-148.20672136,0.00013698,2]
[333619617,1722289846037,-206.8246195,0.000134,2]
[333619620,1722289846047,-351.79327864,0.00013698,2]
[333619622,1722289846057,-500.0,0.00013698,2]
[333619624,1722289846066,-501.24621465,0.00013698,2]
[333619626,1722289846076,-500.0,0.00013698,2]
[333619628,1722289846086,-504.29453083,0.00013698,2]
[333619630,1722289846096,-500.0,0.00013698,2]
[333619632,1722289846106,-500.0,0.00013698,2]
[333619633,1722289846115,-500.0,0.00013698,2]
[333619634,1722289846124,-500.0,0.00013698,2]
[333619635,1722289846134,-545.03,0.00013698,2]
[333619636,1722289846144,-151.0,0.00013698,2]
[333619637,1722289846153,-151.0,0.00013698,2]
[333619638,1722289846163,-151.0,0.00013698,2]
[333619639,1722289846172,-151.0,0.00013698,2]
[333619640,1722289846182,-151.0,0.00013698,2]
[333619641,1722289846191,-500.0,0.00013698,2]
[333619642,1722289846200,-151.0,0.00013698,2]
[333619643,1722289846209,-151.0,0.00013698,2]
[333619644,1722289846219,-151.0,0.00013698,2]
[333619646,1722289846228,-151.0,0.00013698,2]
[333619648,1722289846237,-151.0,0.00013698,2]
[333619650,1722289846247,-288.2,0.00013698,2]
[333619652,1722289846256,-151.0,0.00013698,2]
[333619654,1722289846265,-151.0,0.00013698,2]
[333619657,1722289846275,-500.0,0.00013698,2]
[333619671,1722289846354,-151.0,0.00013698,2]
[333619674,1722289846364,-151.0,0.00013698,2]
[333619677,1722289846374,-151.0,0.00013698,2]
[333619680,1722289846384,-151.0,0.00013698,2]
[333619682,1722289846393,-151.0,0.00013698,2]
[333619684,1722289846402,-151.0,0.00013698,2]
[333619686,1722289846411,-151.0,0.00013698,2]
[333619688,1722289846421,-151.0,0.00013698,2]
[333619690,1722289846431,-151.0,0.00013698,2]
[333619692,1722289846440,-500.0,0.00013698,2]
[333619694,1722289846449,-500.0,0.00013698,2]
[333619696,1722289846459,-500.0,0.00013698,2]
[333619698,1722289846468,-500.0,0.00013698,2]
[333619700,1722289846477,-500.0,0.00013698,2]
[333619702,1722289846487,-507.30241532,0.00013698,2]
[333619704,1722289846495,-500.0,0.00013698,2]
[333619706,1722289846505,-80.25161246,0.00013698,2]
[333619709,1722289846519,-419.74838754,0.00013698,2]
[333619711,1722289846528,-500.0,0.00013698,2]
[333619713,1722289846538,-500.0,0.00013698,2]
[333619715,1722289846547,-500.0,0.00013698,2]
[333619717,1722289846557,-186.90585738,0.00013698,2]
[333619719,1722289846568,-574.48414262,0.00013698,2]
[333619721,1722289846578,-500.0,0.00013698,2]
[333619723,1722289846589,-500.0,0.00013698,2]
[333619725,1722289846601,-500.0,0.00013698,2]
[333619727,1722289846610,-477.18546593,0.00013698,2]
[333619729,1722289846620,-500.0,0.00013698,2]
[333619731,1722289846630,-500.0,0.00013698,2]
[333619733,1722289846641,-515.65798162,0.00013698,2]
[333619735,1722289846651,-500.0,0.00013698,2]
[333619737,1722289846660,-500.0,0.00013698,2]
[333619739,1722289846671,-500.0,0.00013698,2]
[333619741,1722289846680,-500.0,0.00013698,2]
[333619743,1722289846690,-786.76,0.00013698,2]
[333619745,1722289846699,-500.0,0.00013698,2]
[333619747,1722289846709,-500.0,0.00013698,2]
[333619749,1722289846719,-500.0,0.00013698,2]
[333619751,1722289846728,-520.00000001,0.00013698,2]
[333619753,1722289846738,-500.0,0.00013698,2]
[333619755,1722289846748,-500.0,0.00013698,2]
[333619757,1722289846757,-500.34798809,0.00013698,2]
[333619759,1722289846766,-384.53519204,0.00013698,2]
[333619761,1722289846776,-500.0,0.00013698,2]
[333619763,1722289846785,-1045.6,0.00013698,2]
[333619766,1722289846796,-500.0,0.00013698,2]
[333619768,1722289846806,-500.0,0.00013698,2]
[333619770,1722289846817,-500.0,0.00013698,2]
[333619772,1722289846827,-500.0,0.00013698,2]
[333619774,1722289846837,-507.57987617,0.00013698,2]
[333619776,1722289846846,-500.0,0.00013698,2]
[333619779,1722289846869,-500.0,0.00013698,2]
[333619782,1722289846885,-152.182676,0.00013698,2]
[333619785,1722289846904,-500.0,0.00013698,2]
[333619789,1722289846926,-500.0,0.00013698,2]
[333619792,1722289846946,-500.0,0.00013698,2]
[333619795,1722289846963,-500.0,0.00013698,2]
[333619798,1722289846980,-500.0,0.00013698,2]
[333619800,1722289846995,-151.0,0.00013698,2]
[333619803,1722289847011,-500.0,0.00013698,2]
[333619806,1722289847031,-151.0,0.00013698,2]
[333619809,1722289847048,-500.0,0.00013698,2]
[333619812,1722289847060,-151.0,0.00013698,2]
[333619814,1722289847076,-282.76566051,0.00013698,2]
[333619817,1722289847091,-151.0,0.00013698,2]
[333619820,1722289847108,-500.0,0.00013698,2]
[333619823,1722289847123,-151.0,0.00013698,2]
[333619825,1722289847139,-500.0,0.00013698,2]
[333619828,1722289847153,-500.0,0.00013698,2]
[333619830,1722289847168,-154.460025,0.00013698,2]
[333619833,1722289847181,-500.0,0.00013698,2]
[333619836,1722289847196,-500.0,0.00013698,2]
[333619838,1722289847211,-501.02034836,0.00013698,2]
[333619841,1722289847225,-500.0,0.00013698,2]
[333619843,1722289847239,-500.0,0.00013698,2]
[333619846,1722289847254,-500.0,0.00013698,2]
[333619848,1722289847268,-500.0,0.00013698,2]
[333619851,1722289847281,-500.0,0.00013698,2]
[333619854,1722289847296,-284.69108088,0.00013698,2]
[333619856,1722289847310,-500.0,0.00013698,2]
[333619859,1722289847325,-500.0,0.00013698,2]
[333619861,1722289847339,-500.0,0.00013698,2]
[333619864,1722289847352,-500.0,0.00013698,2]
[333619867,1722289847368,-500.0,0.00013698,2]
[333619869,1722289847382,-500.0,0.00013698,2]
[333619872,1722289847396,-500.0,0.00013698,2]
[333619874,1722289847410,-500.0,0.00013698,2]
[333619877,1722289847423,-500.0,0.00013698,2]
[333619879,1722289847438,-1054.0,0.00013698,2]
[333619882,1722289847453,-151.0,0.00013698,2]
[333619885,1722289847467,-151.0,0.00013698,2]
[333619887,1722289847482,-151.0,0.00013698,2]
[333619890,1722289847495,-151.0,0.00013698,2]
[333619892,1722289847509,-151.0,0.00013698,2]
[333619895,1722289847524,-151.0,0.00013698,2]
[333619897,1722289847537,-500.0,0.00013698,2]
[333619899,1722289847547,-500.0,0.00013698,2]
[333619901,1722289847556,-500.0,0.00013698,2]
[333619904,1722289847566,-500.0,0.00013698,2]
[333619906,1722289847575,-1186.42,0.00013698,2]
[333619920,1722289847679,-500.0,0.00013698,2]
[333619924,1722289847729,-500.0,0.00013698,2]
[333619926,1722289847740,-500.0,0.00013698,2]
[333619928,1722289847749,-655.9,0.00013698,2]
[333619930,1722289847759,-500.0,0.00013698,2]
[333619932,1722289847769,-500.0,0.00013698,2]
[333619934,1722289847779,-344.94435489,0.00013698,2]
[333619936,1722289847788,-500.0,0.00013698,2]
[333619938,1722289847798,-500.0,0.00013698,2]
[333619940,1722289847808,-500.0,0.00013698,2]
[333619942,1722289847818,-500.0,0.00013698,2]
[333619944,1722289847827,-500.0,0.00013698,2]
[333619946,1722289847838,-500.0,0.00013698,2]
[333619948,1722289847847,-1108.38,0.00013698,2]
[333619950,1722289847858,-500.0,0.00013698,2]
[333619952,1722289847868,-189.38730066,0.00013698,2]
[333619954,1722289847877,-500.0,0.00013698,2]
[333619956,1722289847886,-196.13861697,0.00013698,2]
[333619958,1722289847896,-500.0,0.00013698,2]
[333619960,1722289847905,-500.0,0.00013698,2]
[333619962,1722289847914,-271.80768515,0.00013698,2]
[333619964,1722289847924,-500.0,0.00013698,2]
[333619967,1722289847933,-967.83,0.00013698,2]
[333619969,1722289847943,-500.0,0.00013698,2]
[333619971,1722289847954,-500.0,0.00013698,2]
[333619973,1722289847965,-544.01,0.00013698,2]
[333619975,1722289847975,-500.0,0.00013698,2]
[333619977,1722289847985,-500.0,0.00013698,2]
[333619979,1722289847994,-500.0,0.00013698,2]
[333619981,1722289848004,-500.0,0.00013698,2]
[333619983,1722289848013,-397.9116051,0.00013698,2]
[333619987,1722289848037,-102.0883949,0.00013698,2]
[333619989,1722289848047,-500.0,0.00013698,2]
[333619991,1722289848059,-500.0,0.00013698,2]
[333619993,1722289848070,-500.0,0.00013698,2]
[333619995,1722289848081,-500.0,0.00013698,2]
[333619997,1722289848091,-510.3836282,0.00013698,2]
[333619999,1722289848100,-500.0,0.00013698,2]
[333620001,1722289848110,-506.82536194,0.00013698,2]
[333620003,1722289848121,-500.0,0.00013698,2]
[333620005,1722289848130,-500.0,0.00013698,2]
[333620007,1722289848140,-500.0,0.00013698,2]
[333620009,1722289848150,-500.0,0.00013698,2]
[333620011,1722289848160,-400.88922609,0.00013698,2]
[333620013,1722289848170,-500.0,0.00013698,2]
[333620015,1722289848180,-500.0,0.00013698,2]
[333620018,1722289848190,-500.0,0.00013698,2]
[333620020,1722289848200,-500.0,0.00013698,2]
[333620022,1722289848210,-518.01347535,0.00013698,2]
[333620024,1722289848220,-500.0,0.00013698,2]
[333620026,1722289848229,-500.0,0.00013698,2]
[333620028,1722289848239,-500.0,0.00013698,2]
[333620030,1722289848249,-735.663801,0.00013698,2]
[333620032,1722289848259,-500.0,0.00013698,2]
[333620034,1722289848269,-500.0,0.00013698,2]
[333620036,1722289848279,-735.663801,0.00013698,2]
[333620038,1722289848288,-735.663801,0.00013698,2]
[333620040,1722289848298,-704.65,0.00013698,2]
[333620042,1722289848310,-735.663801,0.00013698,2]
[333620044,1722289848320,-735.663801,0.00013698,2]
[333620046,1722289848329,-500.0,0.00013698,2]
[333620048,1722289848339,-735.663801,0.00013698,2]
[333620050,1722289848348,-151.0,0.00013698,2]
[333620052,1722289848357,-500.0,0.00013698,2]
[333620054,1722289848367,-151.0,0.00013698,2]
[333620056,1722289848376,-151.0,0.00013698,2]
[333620058,1722289848386,-151.0,0.00013698,2]
[333620060,1722289848396,-151.0,0.00013698,2]
[333620062,1722289848406,-735.663801,0.00013698,2]
[333620064,1722289848415,-151.0,0.00013698,2]
[333620066,1722289848425,-735.663801,0.00013698,2]
[333620068,1722289848436,-735.663801,0.00013698,2]
[333620070,1722289848445,-151.0,0.00013698,2]
[333620072,1722289848455,-735.663801,0.00013698,2]
[333620074,1722289848465,-735.663801,0.00013698,2]
[333620076,1722289848475,-735.663801,0.00013698,2]
[333620078,1722289848485,-500.0,0.00013698,2]
[333620081,1722289848495,-500.0,0.00013698,2]
[333620083,1722289848504,-500.0,0.00013698,2]
[333620085,1722289848514,-500.0,0.00013698,2]
[333620087,1722289848524,-500.0,0.00013698,2]
[333620089,1722289848534,-1102.92,0.00013698,2]
[333620091,1722289848544,-500.0,0.00013698,2]
[333620093,1722289848554,-500.0,0.00013698,2]
[333620095,1722289848564,-500.0,0.00013698,2]
[333620097,1722289848574,-643.43,0.00013698,2]
[333620099,1722289848584,-500.0,0.00013698,2]
[333620101,1722289848598,-500.0,0.00013698,2]
[333620103,1722289848607,-2655.67,0.00013698,2]
[333620105,1722289848617,-151.0,0.00013698,2]
[333620107,1722289848626,-151.0,0.00013698,2]
[333620109,1722289848638,-151.0,0.00013698,2]
[333620111,1722289848648,-552.67,0.00013698,2]
[333620113,1722289848657,-151.0,0.00013698,2]
[333620115,1722289848667,-151.0,0.00013698,2]
[333620117,1722289848678,-500.0,0.00013698,2]
[333620119,1722289848688,-500.0,0.00013698,2]
[333620121,1722289848698,-500.0,0.00013698,2]
[333620123,1722289848708,-328.72391075,0.00013698,2]
[333620125,1722289848718,-500.0,0.00013698,2]
[333620127,1722289848727,-539.44620326,0.00013698,2]
[333620130,1722289848737,-800.5,0.00013698,2]
[333620132,1722289848747,-500.0,0.00013698,2]
[333620134,1722289848758,-500.0,0.00013698,2]
[333620136,1722289848767,-500.0,0.00013698,2]
[333620138,1722289848777,-512.62054526,0.00013698,2]
[333620140,1722289848787,-322.686737,0.00013698,2]
[333620142,1722289848796,-500.0,0.00013698,2]
[333620144,1722289848806,-500.0,0.00013698,2]
[333620146,1722289848816,-500.0,0.00013698,2]
[333620148,1722289848826,-500.0,0.00013698,2]
[333620150,1722289848835,-500.0,0.00013698,2]
[333620152,1722289848845,-322.686737,0.00013698,2]
[333620154,1722289848855,-500.0,0.00013698,2]
[333620155,1722289848865,-322.686737,0.00013698,2]
[333620156,1722289848874,-189.43368893,0.00013698,2]
[333620157,1722289848885,-322.686737,0.00013698,2]
[333620158,1722289848895,-322.686737,0.00013698,2]
[333620159,1722289848904,-1463.29,0.00013698,2]
[333620160,1722289848914,-322.686737,0.00013698,2]
[333620161,1722289848923,-322.686737,0.00013698,2]
[333620162,1722289848932,-322.686737,0.00013698,2]
[333620163,1722289848942,-500.0,0.00013698,2]
[333620164,1722289848952,-322.686737,0.00013698,2]
[333620165,1722289848962,-322.686737,0.00013698,2]
[333620166,1722289848972,-322.686737,0.00013698,2]
[333620167,1722289848982,-187.06055498,0.00013698,2]
[333620168,1722289848992,-322.686737,0.00013698,2]
[333620169,1722289849001,-322.686737,0.00013698,2]
[333620170,1722289849011,-322.686737,0.00013698,2]
[333620171,1722289849022,-151.0,0.00013698,2]
[333620172,1722289849032,-500.0,0.00013698,2]
[333620174,1722289849041,-151.0,0.00013698,2]
[333620176,1722289849052,-151.0,0.00013698,2]
[333620178,1722289849063,-500.0,0.00013698,2]
[333620180,1722289849073,-151.0,0.00013698,2]
[333620182,1722289849083,-214.932697,0.00013698,2]
[333620184,1722289849093,-500.0,0.00013698,2]
[333620186,1722289849103,-500.0,0.00013698,2]
[333620188,1722289849112,-500.0,0.00013698,2]
[333620190,1722289849122,-500.0,0.00013698,2]
[333620192,1722289849132,-2105.75,0.00013698,2]
[333620194,1722289849142,-500.0,0.00013698,2]
[333620196,1722289849151,-500.0,0.00013698,2]
[333620198,1722289849161,-501.61898324,0.00013698,2]
[333620200,1722289849170,-500.0,0.00013698,2]
[333620202,1722289849181,-500.0,0.00013698,2]
[333620204,1722289849191,-500.0,0.00013698,2]
[333620207,1722289849202,-500.0,0.00013698,2]
[333620209,1722289849212,-500.0,0.00013698,2]
[333620211,1722289849222,-608.17,0.00013698,2]
[333620213,1722289849231,-500.0,0.00013698,2]
[333620215,1722289849242,-654.38,0.00013698,2]
[333620217,1722289849252,-173.677899,0.00013698,2]
[333620219,1722289849262,-173.677899,0.00013698,2]
[333620220,1722289849273,-173.677899,0.00013698,2]
[333620222,1722289849282,-173.677899,0.00013698,2]
[333620224,1722289849292,-173.677899,0.00013698,2]
[333620226,1722289849301,-173.677899,0.00013698,2]
[333620228,1722289849312,-173.677899,0.00013698,2]
[333620230,1722289849321,-173.677899,0.00013698,2]
[333620232,1722289849331,-173.677899,0.00013698,2]
[333620234,1722289849340,-173.677899,0.00013698,2]
[333620236,1722289849350,-173.677899,0.00013698,2]
[333620238,1722289849359,-1993.38,0.00013698,2]
[333620240,1722289849369,-500.0,0.00013698,2]
[333620242,1722289849378,-173.677899,0.00013698,2]
[333620244,1722289849388,-173.677899,0.00013698,2]
[333620247,1722289849398,-500.0,0.00013698,2]
[333620249,1722289849408,-519.39971363,0.00013698,2]
[333620250,1722289849418,-173.677899,0.00013698,2]
[333620252,1722289849427,-500.0,0.00013698,2]
[333620254,1722289849437,-500.0,0.00013698,2]
[333620257,1722289849448,-500.0,0.00013698,2]
[333620259,1722289849458,-1183.22,0.00013698,2]
[333620261,1722289849468,-500.0,0.00013698,2]
[333620263,1722289849478,-631.73,0.00013698,2]
[333620265,1722289849488,-500.0,0.00013698,2]
[333620267,1722289849497,-500.0,0.00013698,2]
[333620269,1722289849507,-500.0,0.00013698,2]
[333620271,1722289849517,-500.0,0.00013698,2]
[333620273,1722289849526,-503.97136009,0.00013698,2]
[333620275,1722289849535,-1814.46,0.00013698,2]
[333620285,1722289849627,-501.43147663,0.00013698,2]
[333620287,1722289849643,-665.12,0.00013698,2]
[333620289,1722289849654,-1292.99,0.00013698,2]
[333620291,1722289849663,-500.0,0.00013698,2]
[333620293,1722289849675,-500.0,0.00013698,2]
[333620296,1722289849685,-500.0,0.00013698,2]
[333620298,1722289849695,-151.0,0.00013698,2]
[333620299,1722289849705,-151.0,0.00013698,2]
[333620301,1722289849714,-151.0,0.00013698,2]
[333620303,1722289849723,-500.0,0.00013698,2]
[333620305,1722289849732,-151.0,0.00013698,2]
[333620307,1722289849742,-500.0,0.00013698,2]
[333620309,1722289849753,-500.0,0.00013698,2]
[333620311,1722289849762,-500.0,0.00013698,2]
[333620313,1722289849772,-500.0,0.00013698,2]
[333620315,1722289849782,-500.0,0.00013698,2]
[333620317,1722289849792,-500.0,0.00013698,2]
[333620319,1722289849801,-500.0,0.00013698,2]
[333620321,1722289849811,-500.0,0.00013698,2]
[333620323,1722289849819,-500.0,0.00013698,2]
[333620325,1722289849828,-500.0,0.00013698,2]
[333620327,1722289849838,-500.0,0.00013698,2]
[333620329,1722289849848,-500.0,0.00013698,2]
[333620331,1722289849858,-500.0,0.00013698,2]
[333620333,1722289849867,-500.0,0.00013698,2]
[333620335,1722289849877,-500.0,0.00013698,2]
[333620337,1722289849886,-1623.87,0.00013698,2]
[333620339,1722289849896,-1438.39,0.00013698,2]
[333620341,1722289849907,-2372.15,0.00013698,2]
[333620343,1722289849916,-500.0,0.00013698,2]
[333620345,1722289849925,-1028.73,0.00013698,2]
[333620347,1722289849937,-500.0,0.00013698,2]
[333620349,1722289849947,-1887.99,0.00013698,2]
[333620351,1722289849957,-342.451268,0.00013698,2]
[333620353,1722289849966,-342.451268,0.00013698,2]
[333620355,1722289849977,-342.451268,0.00013698,2]
[333620357,1722289849987,-342.451268,0.00013698,2]
[333620359,1722289849998,-342.451268,0.00013698,2]
[333620362,1722289850007,-342.451268,0.00013698,2]
[333620364,1722289850017,-342.451268,0.00013698,2]
[333620366,1722289850026,-342.451268,0.00013698,2]
[333620368,1722289850036,-342.451268,0.00013698,2]
[333620370,1722289850046,-342.451268,0.00013698,2]
[333620372,1722289850058,-342.451268,0.00013698,2]
[333620374,1722289850067,-936.07,0.00013698,2]
[333620376,1722289850077,-342.451268,0.00013698,2]
[333620378,1722289850088,-342.451268,0.00013698,2]
[333620380,1722289850099,-150.0,0.00013698,2]
[333620383,1722289850111,-342.451268,0.00013698,2]
[333620385,1722289850120,-374.4466312,0.00013698,2]
[333620387,1722289850131,-1708.0,0.00013698,2]
[333620389,1722289850141,-500.0,0.00013698,2]
[333620391,1722289850151,-2208.28,0.00013698,2]
[333620393,1722289850161,-500.0,0.00013698,2]
[333620395,1722289850170,-500.0,0.00013698,2]
[333620397,1722289850179,-500.0,0.00013698,2]
[333620399,1722289850189,-303.738493,0.00013698,2]
[333620401,1722289850198,-403.60933229,0.00013698,2]
[333620403,1722289850208,-303.738493,0.00013698,2]
[333620405,1722289850218,-303.738493,0.00013698,2]
[333620407,1722289850229,-303.738493,0.00013698,2]
[333620409,1722289850240,-303.738493,0.00013698,2]
[333620412,1722289850249,-303.738493,0.00013698,2]
[333620413,1722289850259,-4759.59,0.00013698,2]
[333620416,1722289850269,-303.738493,0.00013698,2]
[333620418,1722289850279,-303.738493,0.00013698,2]
[333620420,1722289850289,-303.738493,0.00013698,2]
[333620422,1722289850298,-151.0,0.00013698,2]
[333620424,1722289850308,-303.738493,0.00013698,2]
[333620426,1722289850319,-151.0,0.00013698,2]
[333620428,1722289850329,-151.0,0.00013698,2]
[333620430,1722289850339,-303.738493,0.00013698,2]
[333620432,1722289850348,-151.0,0.00013698,2]
[333620434,1722289850358,-303.738493,0.00013698,2]
[333620436,1722289850369,-303.738493,0.00013698,2]
[333620438,1722289850379,-151.0,0.00013698,2]
[333620440,1722289850388,-303.738493,0.00013698,2]
[333620442,1722289850397,-151.0,0.00013698,2]
[333620444,1722289850406,-151.0,0.00013698,2]
[333620446,1722289850416,-500.0,0.00013698,2]
[333620448,1722289850425,-933.33,0.00013698,2]
[333620450,1722289850435,-500.0,0.00013698,2]
[333620452,1722289850444,-500.0,0.00013698,2]
[333620454,1722289850453,-1279.82,0.00013698,2]
[333620456,1722289850463,-500.0,0.00013698,2]
[333620458,1722289850473,-695.39,0.00013698,2]
[333620460,1722289850483,-2170.25,0.00013698,2]
[333620462,1722289850492,-2828.54,0.00013698,2]
[333620464,1722289850502,-500.0,0.00013698,2]
[333620466,1722289850512,-522.45691885,0.00013698,2]
[333620468,1722289850522,-500.0,0.00013698,2]